fUST/lending_fUST_20240302
["ID","MTS","AMOUNT","RATE_DAILY","PERIOD"]
[315997896,1709320237989,-400.0,0.0002,2]
[315997900,1709320237999,-238.53127687,0.00020217,2]
[315997903,1709320238009,-2650.94,0.00020219,3]
[315997906,1709320238018,-2209.12,0.00020219,3]
[315997909,1709320238027,-11944.76042057,0.00020229,2]
[315997912,1709320238037,-166.666666,0.000203,2]
[315997914,1709320238046,-606.29043288,0.00020347,2]
[315997916,1709320238056,-461.71,0.00020373,3]
[315997918,1709320238065,-40615.9565596,0.00020383,5]
[315997920,1709320238075,-62694.63574652,0.00020383,5]
[315997922,1709320238084,-5464.06989658,0.00020383,5]
[315997923,1709320238094,-1347.56168931,0.00020383,5]
[315997925,1709320238103,-1699.58856027,0.00020447,2]
[315997928,1709320238113,-31916.58496571,0.00020492,3]
[315997930,1709320238122,-895.82924828,0.00020492,2]
[315997931,1709320238132,-195.96492299,0.00020495,2]
[315997933,1709320238141,-483.84873627,0.00020546,2]
[315997936,1709320238151,-428.06540004,0.00020546,2]
[315997938,1709320238160,-500.0,0.00020547,2]
[315997939,1709320238169,-500.0,0.00020547,2]
[315997942,1709320238179,-188.94,0.00020547,2]
[315997944,1709320238189,-312.86,0.00020547,2]
[315997946,1709320238199,-500.0,0.00020547,2]
[315997948,1709320238209,-500.0,0.00020547,2]
[315997950,1709320238219,-500.0,0.00020547,2]
[315997952,1709320238228,-500.0,0.00020547,2]
[315997954,1709320238237,-500.0,0.00020547,2]
[315997956,1709320238246,-500.0,0.00020547,2]
[315997958,1709320238256,-310.88,0.00020547,2]
[315997960,1709320238265,-500.0,0.00020547,2]
[315997962,1709320238276,-500.0,0.00020547,2]
[315997964,1709320238286,-500.0,0.00020547,2]
[315997966,1709320238295,-275.56,0.00020547,2]
[315997968,1709320238304,-500.0,0.00020547,2]
[315997970,1709320238313,-425.82998793,0.00020547,2]
[315997972,1709320238323,-500.0,0.00020547,2]
[315997974,1709320238333,-500.0,0.00020547,2]
[315997976,1709320238343,-500.0,0.00020547,2]
[315997978,1709320238355,-329.79,0.00020547,2]
[315997980,1709320238364,-500.0,0.00020547,2]
[315997982,1709320238374,-325.09,0.00020547,2]
[315997984,1709320238385,-500.0,0.00020547,2]
[315997986,1709320238394,-500.0,0.00020547,2]
[315997988,1709320238404,-500.0,0.00020547,2]
[315997990,1709320238416,-500.0,0.00020547,2]
[315997993,1709320238427,-500.0,0.00020547,2]
[315997995,1709320238437,-500.0,0.00020547,2]
[315997996,1709320238447,-500.0,0.00020547,2]
[315997999,1709320238456,-500.0,0.00020547,2]
[315998000,1709320238466,-500.0,0.00020547,2]
[315998002,1709320238475,-500.0,0.00020547,2]
[315998004,1709320238485,-500.0,0.00020547,2]
[315998006,1709320238494,-500.0,0.00020547,2]
[315998009,1709320238504,-500.0,0.00020547,2]
[315998011,1709320238514,-500.0,0.00020547,2]
[315998013,1709320238524,-500.0,0.00020547,2]
[315998015,1709320238536,-500.0,0.00020547,2]
[315998017,1709320238545,-500.0,0.00020547,2]
[315998018,1709320238554,-500.0,0.00020547,2]
[315998020,1709320238563,-500.0,0.00020547,2]
[315998023,1709320238572,-500.0,0.00020547,2]
[315998025,1709320238583,-500.0,0.00020547,2]
[315998027,1709320238591,-624.1,0.00020547,2]
[315998028,1709320238603,-500.0,0.00020547,2]
[315998030,1709320238615,-500.0,0.00020547,2]
[315998033,1709320238626,-500.0,0.00020547,2]
[315998034,1709320238636,-500.0,0.00020547,2]
[315998037,1709320238645,-500.0,0.00020547,2]
[315998039,1709320238654,-500.0,0.00020547,2]
[315998041,1709320238664,-500.0,0.00020547,2]
[315998043,1709320238673,-500.0,0.00020547,2]
[315998044,1709320238683,-500.0,0.00020547,2]
[315998047,1709320238694,-500.0,0.00020547,2]
[315998049,1709320238705,-500.0,0.00020547,2]
[315998051,1709320238715,-500.0,0.00020547,2]
[315998053,1709320238725,-500.0,0.00020547,2]
[315998055,1709320238735,-500.0,0.00020547,2]
[315998057,1709320238746,-500.0,0.00020547,2]
[315998058,1709320238756,-500.0,0.00020547,2]
[315998060,1709320238766,-260.49085765,0.00020547,2]
[315998062,1709320238776,-2135.5,0.00020547,2]
[315998064,1709320238787,-2135.5,0.00020547,2]
[315998066,1709320238796,-2135.5,0.00020547,2]
[315998068,1709320238806,-500.0,0.00020547,2]
[315998070,1709320238816,-500.0,0.00020547,2]
[315998072,1709320238826,-494.76,0.00020547,2]
[315998074,1709320238836,-500.0,0.00020547,2]
[315998075,1709320238846,-500.0,0.00020547,2]
[315998076,1709320238858,-500.0,0.00020547,2]
[315998077,1709320238867,-500.0,0.00020547,2]
[315998078,1709320238876,-500.0,0.00020547,2]
[315998079,1709320238886,-500.0,0.00020547,2]
[315998080,1709320238896,-500.0,0.00020547,2]
[315998081,1709320238905,-500.0,0.00020547,2]
[315998082,1709320238915,-500.0,0.00020547,2]
[315998083,1709320238924,-248.96,0.00020547,2]
[315998084,1709320238933,-500.0,0.00020547,2]
[315998085,1709320238943,-500.0,0.00020547,2]
[315998086,1709320238952,-500.0,0.00020547,2]
[315998087,1709320238961,-500.0,0.00020547,2]
[315998088,1709320238970,-357.58454114,0.00020547,2]
[315998089,1709320238979,-500.0,0.00020547,2]
[315998090,1709320238988,-439.96268574,0.00020547,2]
[315998091,1709320238997,-500.0,0.00020547,2]
[315998092,1709320239006,-500.0,0.00020547,2]
[315998093,1709320239015,-500.0,0.00020547,2]
[315998094,1709320239024,-500.0,0.00020547,2]
[315998096,1709320239033,-500.0,0.00020547,2]
[315998098,1709320239043,-638.43,0.00020547,2]
[315998100,1709320239051,-500.0,0.00020547,2]
[315998102,1709320239061,-500.0,0.00020547,2]
[315998104,1709320239070,-500.0,0.00020547,2]
[315998106,1709320239079,-500.0,0.00020547,2]
[315998108,1709320239089,-500.0,0.00020547,2]
[315998122,1709320239208,-500.0,0.00020547,2]
[315998124,1709320239219,-500.0,0.00020547,2]
[315998126,1709320239228,-500.0,0.00020547,2]
[315998128,1709320239238,-500.0,0.00020547,2]
[315998130,1709320239248,-500.0,0.00020547,2]
[315998132,1709320239258,-500.0,0.00020547,2]
[315998134,1709320239267,-500.0,0.00020547,2]
[315998136,1709320239277,-500.0,0.00020547,2]
[315998138,1709320239287,-500.0,0.00020547,2]
[315998140,1709320239297,-500.0,0.00020547,2]
[315998142,1709320239306,-500.0,0.00020547,2]
[315998144,1709320239316,-500.0,0.00020547,2]
[315998146,1709320239325,-500.0,0.00020547,2]
[315998148,1709320239336,-500.0,0.00020547,2]
[315998150,1709320239345,-500.0,0.00020547,2]
[315998152,1709320239356,-500.0,0.00020547,2]
[315998154,1709320239366,-190.36,0.00020547,2]
[315998156,1709320239377,-500.0,0.00020547,2]
[315998158,1709320239386,-500.0,0.00020547,2]
[315998160,1709320239396,-500.0,0.00020547,2]
[315998162,1709320239406,-500.0,0.00020547,2]
[315998164,1709320239415,-500.0,0.00020547,2]
[315998166,1709320239425,-500.0,0.00020547,2]
[315998168,1709320239434,-500.0,0.00020547,2]
[315998170,1709320239445,-500.0,0.00020547,2]
[315998172,1709320239454,-626.42,0.00020547,2]
[315998174,1709320239464,-500.0,0.00020547,2]
[315998176,1709320239474,-500.0,0.00020547,2]
[315998178,1709320239483,-500.0,0.00020547,2]
[315998180,1709320239493,-500.0,0.00020547,2]
[315998182,1709320239502,-500.0,0.00020547,2]
[315998184,1709320239513,-500.0,0.00020547,2]
[315998186,1709320239523,-500.0,0.00020547,2]
[315998188,1709320239535,-500.0,0.00020547,2]
[315998190,1709320239545,-500.0,0.00020547,2]
[315998192,1709320239555,-500.0,0.00020547,2]
[315998194,1709320239564,-500.0,0.00020547,2]
[315998196,1709320239574,-561.03579599,0.00020547,2]
[315998198,1709320239583,-620.00015523,0.00020563,2]
[315998200,1709320239593,-8234.00193465,0.0002089,2]
[315998202,1709320239606,-205.06705101,0.00020996,2]
[315998204,1709320239617,-500.0,0.00020996,2]
[315998206,1709320239626,-500.0,0.00020996,2]
[315998208,1709320239636,-500.0,0.00020996,2]
[315998210,1709320239645,-456.12574383,0.00020996,2]
[315998212,1709320239654,-620.52,0.00020996,2]
[315998214,1709320239664,-500.0,0.00020996,2]
[315998217,1709320239674,-500.0,0.00020996,2]
[315998218,1709320239683,-500.0,0.00020996,2]
[315998220,1709320239694,-500.0,0.00020996,2]
[315998223,1709320239705,-2135.5,0.00020996,2]
[315998224,1709320239714,-2135.5,0.00020996,2]
[315998227,1709320239725,-500.0,0.00020996,2]
[315998229,1709320239734,-500.0,0.00020996,2]
[315998230,1709320239743,-500.0,0.00020996,2]
[315998232,1709320239753,-500.0,0.00020996,2]
[315998234,1709320239763,-500.0,0.00020996,2]
[315998236,1709320239773,-500.0,0.00020996,2]
[315998239,1709320239783,-500.0,0.00020996,2]
[315998241,1709320239793,-500.0,0.00020996,2]
[315998242,1709320239803,-500.0,0.00020996,2]
[315998244,1709320239812,-500.0,0.00020996,2]
[315998246,1709320239821,-500.0,0.00020996,2]
[315998248,1709320239830,-500.0,0.00020996,2]
[315998250,1709320239840,-500.0,0.00020996,2]
[315998252,1709320239850,-500.0,0.00020996,2]
[315998254,1709320239859,-500.0,0.00020996,2]
[315998256,1709320239869,-500.0,0.00020996,2]
[315998258,1709320239879,-75989.81300403,0.00020997,2]
[315998260,1709320239888,-502.68,0.00020997,2]
[315998262,1709320239898,-500.0,0.00020997,2]
[315998264,1709320239908,-500.0,0.00020997,2]
[315998267,1709320239918,-500.0,0.00020997,2]
[315998268,1709320239927,-500.0,0.00020997,2]
[315998270,1709320239937,-500.0,0.00020997,2]
[315998272,1709320239947,-500.0,0.00020997,2]
[315998275,1709320239957,-500.0,0.00020997,2]
[315998277,1709320239967,-500.0,0.00020997,2]
[315998278,1709320239976,-500.0,0.00020997,2]
[315998281,1709320239986,-500.0,0.00020997,2]
[315998282,1709320239996,-18647.96991955,0.00020998,2]
[315998284,1709320240005,-234.27214503,0.00021,2]
[315998286,1709320240015,-9912.70788008,0.00021,2]
[315998288,1709320240024,-195.35286849,0.00021,2]
[315998290,1709320240034,-175.5,0.00021,2]
[315998292,1709320240043,-300.0,0.00021,9]
[315998294,1709320240052,-606.29043288,0.00021341,2]
[315998296,1709320240062,-166.666666,0.00021422,2]
[315998298,1709320240071,-500.0,0.00021482,2]
[315998300,1709320240080,-500.0,0.00021482,2]
[315998302,1709320240089,-2135.5,0.00021482,2]
[315998304,1709320240099,-594.5,0.00021482,2]
[315998306,1709320240109,-500.0,0.00021482,2]
[315998308,1709320240118,-500.0,0.00021482,2]
[315998310,1709320240127,-500.0,0.00021482,2]
[315998312,1709320240136,-500.0,0.00021482,2]
[315998314,1709320240146,-500.0,0.00021482,2]
[315998316,1709320240155,-20134.12535737,0.00021483,2]
[315998318,1709320240164,-620.00000776,0.00021591,2]
[315998320,1709320240174,-500.0,0.00021916,2]
[315998322,1709320240183,-500.0,0.00021916,2]
[315998324,1709320240192,-500.0,0.00021917,2]
[315998326,1709320240201,-1413.25406,0.00021918,2]
[315998328,1709320240211,-51927.2960889,0.00021918,15]
[315998330,1709320240220,-400.0,0.00021918,2]
[315998332,1709320240230,-197.0,0.00022,2]
[315998334,1709320240239,-457.0,0.00022,2]
[315998336,1709320240249,-196.0,0.00022,2]
[315998338,1709320240258,-313.0,0.00022,2]
[315998340,1709320240268,-1130.52008354,0.00022,2]
[315998342,1709320240278,-542.92772373,0.0002219,2]
[315998344,1709320240287,-457.0,0.00022192,2]
[315998346,1709320240297,-313.0,0.00022192,2]
[315998348,1709320240306,-15928.06357623,0.00022295,2]
[315998350,1709320240316,-571.46516516,0.00022318,2]
[315998352,1709320240325,-606.29043288,0.00022334,2]
[315998354,1709320240335,-313.0,0.00022466,2]
[315998356,1709320240343,-300.0,0.000225,10]
[315998358,1709320240354,-151.0,0.0002267,2]
[315998360,1709320240363,-303.38,0.00022738,2]
[315998362,1709320240373,-313.0,0.0002274,2]
[315998363,1709320240382,-313.0,0.00023014,2]
[315998365,1709320240392,-457.0,0.00023014,2]
[315998367,1709320240401,-313.0,0.00023014,2]
[315998369,1709320240411,-1000.0,0.00023029,5]
[315998372,1709320240420,-4478.18826761,0.00023029,5]
[315998374,1709320240431,-1286.43087887,0.00023029,5]
[315998375,1709320240440,-410.83232305,0.00023029,5]
[315998377,1709320240449,-580.0,0.000231,2]
[315998379,1709320240459,-500.0,0.00023129,2]
[315998381,1709320240468,-500.0,0.00023129,2]
[315998383,1709320240477,-500.0,0.00023129,2]
[315998386,1709320240487,-299.68,0.0002313,2]
[315998387,1709320240497,-2135.5,0.0002313,2]
[315998389,1709320240506,-500.0,0.0002313,2]
[315998391,1709320240517,-500.0,0.0002313,2]
[315998394,1709320240527,-264.95,0.0002313,2]
[315998395,1709320240538,-214.16868611,0.0002316,2]
[315998397,1709320240548,-2135.5,0.0002316,2]
[315998399,1709320240558,-500.0,0.0002316,2]
[315998401,1709320240569,-649.23,0.0002316,2]
[315998403,1709320240578,-500.0,0.0002316,2]
[315998405,1709320240587,-396.98,0.0002316,2]
[315998407,1709320240596,-500.0,0.0002316,2]
[315998409,1709320240608,-500.0,0.0002316,2]
[315998411,1709320240617,-500.0,0.0002316,2]
[315998413,1709320240626,-50000.0,0.00023161,5]
[315998415,1709320240635,-606.29043288,0.00023328,2]
[315998417,1709320240645,-1413.25406,0.00023452,2]
[315998419,1709320240654,-620.05898512,0.00023457,2]
[315998421,1709320240663,-1000.0,0.00023506,2]
[315998423,1709320240673,-1000.0,0.00023525,2]
[315998425,1709320240682,-1000.0,0.00023544,2]
[315998427,1709320240691,-1000.0,0.00023563,2]
[315998429,1709320240700,-1000.0,0.00023582,2]
[315998431,1709320240710,-1000.0,0.00023602,2]
[315998433,1709320240719,-1000.0,0.00023621,2]
[315998435,1709320240729,-1000.0,0.0002364,2]
[315998437,1709320240738,-1000.0,0.00023659,2]
[315998439,1709320240747,-1000.0,0.00023678,2]
[315998441,1709320240757,-1000.0,0.00023697,2]
[315998443,1709320240766,-1000.0,0.00023717,2]
[315998445,1709320240776,-1000.0,0.00023736,2]
[315998447,1709320240785,-1000.0,0.00023755,2]
[315998449,1709320240794,-1000.0,0.00023774,2]
[315998451,1709320240804,-1000.0,0.00023793,2]
[315998453,1709320240813,-1000.0,0.00023813,2]
[315998455,1709320240823,-1000.0,0.00023832,2]
[315998457,1709320240833,-500.0,0.0002385,2]
[315998459,1709320240842,-507.22581553,0.0002385,2]
[315998461,1709320240853,-1000.0,0.00023851,2]
[315998463,1709320240863,-153.0,0.00023863,2]
[315998465,1709320240873,-1000.0,0.0002387,2]
[315998467,1709320240883,-1000.0,0.00023889,2]
[315998469,1709320240893,-500.0,0.00023907,2]
[315998471,1709320240903,-302.95,0.00023907,2]
[315998473,1709320240913,-1000.0,0.00023908,2]
[315998475,1709320240923,-1000.0,0.00023928,2]
[315998477,1709320240933,-1598.848548,0.00023947,2]
[315998479,1709320240942,-300.0,0.00024,11]
[315998481,1709320240951,-328.0,0.00024164,2]
[315998483,1709320240960,-313.0,0.00024164,2]
[315998484,1709320240970,-463.0,0.00024164,2]
[315998487,1709320240980,-1712.92153823,0.00024318,2]
[315998488,1709320240989,-1712.92153823,0.00024319,2]
[315998490,1709320240998,-1712.92153823,0.0002432,2]
[315998492,1709320241007,-1712.92153823,0.00024321,2]
[315998494,1709320241016,-606.29043288,0.00024321,2]
[315998496,1709320241025,-1712.92153823,0.00024321,2]
[315998498,1709320241034,-1712.92153823,0.00024322,2]
[315998500,1709320241043,-1712.92153823,0.00024323,2]
[315998502,1709320241052,-1712.92153823,0.00024324,2]
[315998504,1709320241061,-1712.92153823,0.00024325,2]
[315998506,1709320241071,-500.0,0.000244,2]
[315998508,1709320241081,-2135.5,0.000244,2]
[315998510,1709320241090,-2135.5,0.000244,2]
[315998513,1709320241100,-2135.5,0.000244,2]
[315998515,1709320241109,-2135.5,0.000244,2]
[315998516,1709320241119,-2135.5,0.000244,2]
[315998518,1709320241128,-2135.5,0.000244,2]
[315998520,1709320241137,-2135.5,0.000244,2]
[315998522,1709320241146,-2135.5,0.000244,2]
[315998525,1709320241156,-2135.5,0.000244,2]
[315998526,1709320241165,-2135.5,0.000244,2]
[315998529,1709320241175,-2135.5,0.000244,2]
[315998531,1709320241184,-2135.5,0.000244,2]
[315998533,1709320241194,-2135.5,0.000244,2]
[315998534,1709320241204,-2135.5,0.000244,2]
[315998536,1709320241213,-2135.5,0.000244,2]
[315998539,1709320241223,-2135.65,0.000244,2]
[315998541,1709320241233,-151.0,0.00024401,2]
[315998543,1709320241243,-299.067643,0.00024401,2]
[315998545,1709320241252,-500.0,0.00024404,2]
[315998547,1709320241261,-568.01206413,0.0002441,2]
[315998549,1709320241271,-153.0,0.00024411,2]
[315998551,1709320241280,-153.0,0.00024411,2]
[315998552,1709320241289,-153.0,0.00024411,2]
[315998555,1709320241298,-153.0,0.00024411,2]
[315998556,1709320241308,-153.0,0.00024411,2]
[315998558,1709320241317,-153.0,0.00024411,2]
[315998561,1709320241330,-153.0,0.00024411,2]
[315998562,1709320241340,-153.0,0.00024411,2]
[315998564,1709320241350,-153.0,0.00024411,2]
[315998566,1709320241360,-153.0,0.00024411,2]
[315998567,1709320241369,-153.0,0.00024411,2]
[315998568,1709320241379,-153.0,0.00024411,2]
[315998569,1709320241388,-153.0,0.00024411,2]
[315998570,1709320241397,-153.0,0.00024411,2]
[315998571,1709320241407,-153.0,0.00024411,2]
[315998573,1709320241417,-200.7008514,0.00024411,2]
[315998575,1709320241426,-153.0,0.00024411,2]
[315998577,1709320241435,-153.0,0.00024411,2]
[315998579,1709320241444,-153.0,0.00024411,2]
[315998581,1709320241453,-153.0,0.00024411,2]
[315998583,1709320241462,-153.0,0.00024411,2]
[315998585,1709320241472,-153.0,0.00024411,2]
[315998587,1709320241481,-306.0,0.00024411,2]
[315998589,1709320241490,-153.0,0.00024411,2]
[315998591,1709320241499,-153.0,0.00024411,2]
[315998593,1709320241508,-153.0,0.00024411,2]
[315998595,1709320241518,-200.7008514,0.00024411,2]
[315998597,1709320241528,-349.6153443,0.00024411,2]
[315998599,1709320241539,-153.0,0.00024411,2]
[315998601,1709320241548,-200.7008514,0.00024411,2]
[315998603,1709320241557,-153.0,0.00024411,2]
[315998605,1709320241566,-153.0,0.00024411,2]
[315998607,1709320241576,-200.7008514,0.00024411,2]
[315998609,1709320241585,-153.0,0.00024411,2]
[315998611,1709320241595,-153.0,0.00024411,2]
[315998621,1709320241681,-200.7008514,0.00024411,2]
[315998623,1709320241690,-155.2902054,0.00024411,2]
[315998625,1709320241699,-200.7008514,0.00024411,2]
[315998627,1709320241710,-200.7008514,0.00024411,2]
[315998629,1709320241719,-200.7008514,0.00024411,2]
[315998631,1709320241729,-200.7008514,0.00024411,2]
[315998633,1709320241739,-153.4110428,0.00024411,2]
[315998635,1709320241749,-153.0,0.00024411,2]
[315998637,1709320241758,-153.0,0.00024411,2]
[315998639,1709320241767,-153.0,0.00024411,2]
[315998641,1709320241776,-153.0,0.00024411,2]
[315998643,1709320241785,-153.0,0.00024411,2]
[315998645,1709320241794,-200.7008514,0.00024411,2]
[315998647,1709320241803,-153.0,0.00024411,2]
[315998649,1709320241813,-153.0,0.00024411,2]
[315998651,1709320241823,-153.0,0.00024411,2]
[315998653,1709320241832,-153.0,0.00024411,2]
[315998655,1709320241842,-200.7008514,0.00024411,2]
[315998657,1709320241853,-153.0,0.00024411,2]
[315998659,1709320241861,-153.0,0.00024411,2]
[315998661,1709320241871,-153.0,0.00024411,2]
[315998663,1709320241881,-199.8854978,0.00024411,2]
[315998665,1709320241890,-473.34185777,0.00024416,2]
[315998667,1709320241900,-70705.88578638,0.00024417,3]
[315998669,1709320241909,-155.12254681,0.00024418,2]
[315998671,1709320241918,-155.12254681,0.00024419,2]
[315998673,1709320241927,-248.17841514,0.0002442,2]
[315998675,1709320241936,-197.66602974,0.0002442,2]
[315998677,1709320241945,-1805.16962823,0.0002442,2]
[315998679,1709320241955,-155.43559933,0.0002442,2]
[315998681,1709320241964,-1390.26247228,0.00024421,2]
[315998683,1709320241973,-151.0,0.00024422,2]
[315998685,1709320241983,-151.0,0.00024422,2]
[315998687,1709320241992,-151.0,0.00024422,2]
[315998689,1709320242000,-234.302427,0.00024422,2]
[315998691,1709320242011,-151.0,0.00024422,2]
[315998693,1709320242021,-151.0,0.00024422,2]
[315998695,1709320242031,-151.0,0.00024422,2]
[315998697,1709320242040,-151.0,0.00024422,2]
[315998699,1709320242050,-151.0,0.00024422,2]
[315998701,1709320242059,-151.0,0.00024422,2]
[315998703,1709320242069,-151.260597,0.00024422,2]
[315998705,1709320242078,-151.0,0.00024422,2]
[315998707,1709320242087,-151.0,0.00024422,2]
[315998709,1709320242096,-151.0,0.00024422,2]
[315998711,1709320242106,-151.0,0.00024422,2]
[315998713,1709320242116,-151.0,0.00024422,2]
[315998716,1709320242126,-151.0,0.00024422,2]
[315998718,1709320242135,-151.0,0.00024422,2]
[315998719,1709320242144,-151.0,0.00024422,2]
[315998721,1709320242154,-151.0,0.00024422,2]
[315998724,1709320242163,-151.0,0.00024422,2]
[315998725,1709320242172,-151.0,0.00024422,2]
[315998727,1709320242181,-151.0,0.00024422,2]
[315998729,1709320242190,-151.0,0.00024422,2]
[315998731,1709320242200,-151.0,0.00024422,2]
[315998733,1709320242210,-151.0,0.00024422,2]
[315998735,1709320242219,-159.193095,0.00024422,2]
[315998737,1709320242229,-164.486278,0.00024422,2]
[315998739,1709320242239,-164.486278,0.00024422,2]
[315998741,1709320242248,-164.486278,0.00024422,2]
[315998743,1709320242259,-164.486278,0.00024422,2]
[315998745,1709320242268,-164.486278,0.00024422,2]
[315998747,1709320242277,-164.486278,0.00024422,2]
[315998749,1709320242286,-164.486278,0.00024422,2]
[315998751,1709320242295,-164.486278,0.00024422,2]
[315998753,1709320242304,-164.486278,0.00024422,2]
[315998756,1709320242313,-164.486278,0.00024422,2]
[315998757,1709320242323,-164.486278,0.00024422,2]
[315998759,1709320242332,-164.486278,0.00024422,2]
[315998761,1709320242342,-164.486278,0.00024422,2]
[315998764,1709320242353,-164.486278,0.00024422,2]
[315998766,1709320242363,-164.486278,0.00024422,2]
[315998767,1709320242372,-164.486278,0.00024422,2]
[315998770,1709320242382,-661.5228741,0.00024423,2]
[315998772,1709320242392,-1422.41751111,0.00024423,2]
[315998774,1709320242401,-220.5995457,0.00024423,2]
[315998776,1709320242410,-311.76,0.00024424,2]
[315998777,1709320242420,-311.76,0.00024424,2]
[315998780,1709320242429,-311.76,0.00024424,2]
[315998781,1709320242438,-311.76,0.00024424,2]
[315998783,1709320242448,-124626.592774,0.00024425,30]
[315998793,1709320242490,-542.92772373,0.00022,2]
[315998796,1709320242499,-24739.87252627,0.00024425,30]
[315998862,1709320243081,-15374.63170224,0.00024425,30]
[315998865,1709320243092,-1317.90400028,0.00024425,30]
[315999313,1709320247351,-153.0,0.00023863,2]
[315999315,1709320247363,-1840.93,0.00024417,3]
[315999317,1709320247372,-89236.75894268,0.00024425,30]
[315999319,1709320247382,-120102.21094771,0.00024425,30]
[315999321,1709320247391,-1076.53962557,0.00024425,30]
[315999323,1709320247400,-43353.46572563,0.00024425,30]
[316001374,1709321343606,382.28553299,0.00019071,3]
[316001426,1709321432244,-155.11478494,0.00018895,2]
[316001428,1709321432254,-155.11478494,0.00018896,2]
[316001430,1709321432264,-760.1702067,0.00018897,2]
[316001432,1709321432276,-605.01801761,0.00018897,2]
[316001436,1709321432302,-5129.20321381,0.00018897,2]
[316001438,1709321432312,-926.94993445,0.00018898,2]
[316001440,1709321432321,-186.25061937,0.00018898,2]
[316001442,1709321432331,-300.0,0.00018898,2]
[316001444,1709321432341,-1250.25966196,0.00018899,2]
[316001445,1709321432350,-571.46516516,0.000189,2]
[316001447,1709321432360,-11590.37359482,0.00019169,2]
[316002272,1709321441343,-3196.4303179,0.00019169,2]
[316002719,1709321446262,-1141.25966351,0.00019169,2]
[316002720,1709321446273,-164.779489,0.00019175,2]
[316002721,1709321446284,-166.666666,0.00019178,2]
[316002722,1709321446294,-166.666666,0.00019926,2]
[316002723,1709321446304,-238.53127687,0.0002,2]
[316002724,1709321446314,-302.57936781,0.00020132,2]
[316002725,1709321446324,-732.23124352,0.00020436,5]
[316002726,1709321446333,-13236.7358757,0.00020436,5]
[316002727,1709321446344,-10153.9891399,0.00020436,5]
[316002728,1709321446353,-19451.36296999,0.00020436,5]
[316002729,1709321446363,-6709.21032629,0.00020533,2]
[316002730,1709321446373,-7848.93770384,0.00020533,2]
[316002731,1709321446383,-1681.12624756,0.00020533,3]
[316002732,1709321446394,-500.0,0.00020547,2]
[316002733,1709321446404,-500.0,0.00020547,2]
[316002734,1709321446414,-500.0,0.00020547,2]
[316002735,1709321446424,-420.0,0.00020601,2]
[316002736,1709321446433,-166.666666,0.00020674,2]
[316002737,1709321446443,-1534.11,0.0002088,3]
[316002738,1709321446453,-1278.43,0.0002088,3]
[316002739,1709321446462,-8234.00193465,0.0002089,2]
[316002740,1709321446472,-300.0,0.00021,9]
[316002741,1709321446482,-166.666666,0.00021422,2]
[316002742,1709321446491,-620.05899249,0.00021509,2]
[316002743,1709321446501,-44796.79226458,0.00022,2]
[316002744,1709321446512,-1130.52008354,0.00022018,2]
[316002745,1709321446521,-361.95181582,0.00022019,2]
[316002746,1709321446531,-500.0,0.0002222,2]
[316002747,1709321446540,-500.0,0.0002222,2]
[316002748,1709321446550,-500.0,0.0002222,2]
[316002749,1709321446559,-500.0,0.0002222,2]
[316002750,1709321446569,-500.0,0.0002222,2]